bitfinex-derivatives/quotes_SOLF0:USTF0_20220106
["timestamp","ask_amount","ask_price","bid_price","bid_amount"]
[1641501570215,74.42217847,151.82,151.75,0.86094394]
[1641501570415,67.8389,151.82,151.71,0.86094394]
[1641501571018,27.66479,151.8,151.71,28.52573394]
[1641501571715,27.66479,151.8,151.75,0.86094394]
[1641501572719,27.66479,151.8,151.71,31.66479]
[1641501572919,27.66479,151.8,151.78,0.86094394]
[1641501573119,27.66479,151.82,151.72,4.0]
[1641501573819,27.66479,151.82,151.79,0.86094394]
[1641501574821,105.03002179,151.86,151.8,0.86094394]
[1641501575020,3.60952196,151.81,151.79,6.38]
[1641501575222,3.60952196,151.81,151.8,0.86094394]
[1641501575620,64.84131179,151.86,151.8,0.86094394]
[1641501575820,64.84131179,151.86,151.78,31.66479]
[1641501576321,27.66479,151.86,151.78,31.66479]
[1641501576523,32.94079,151.86,151.78,31.66479]
[1641501578525,27.66479,151.86,151.82,0.86094394]
[1641501580628,27.66479,151.86,151.8,0.86094394]
[1641501580826,33.63079,151.86,151.77,61.4773]
[1641501581027,64.43463606,151.86,151.77,61.4773]
[1641501581226,64.43463606,151.86,151.77,62.33824394]
[1641501581627,3.13905606,151.82,151.76,27.66479]
[1641501581827,7.89705606,151.82,151.76,27.66479]
[1641501582128,7.89705606,151.82,151.75,0.86094394]
[1641501582830,4.758,151.82,151.76,0.86094394]
[1641501583029,32.42279,151.82,151.76,0.86094394]
[1641501583231,32.42279,151.82,151.78,0.86094394]
[1641501583428,4.758,151.82,151.8,0.86094394]
[1641501583628,4.758,151.82,151.77,0.86094394]
[1641501583829,64.2841,151.85,151.78,0.86094394]
[1641501584029,64.2841,151.85,151.73,65.7179]
[1641501584429,64.2841,151.85,151.78,0.86094394]
[1641501585031,64.2841,151.85,151.76,27.66479]
[1641501585231,64.2841,151.85,151.79,0.86094394]
[1641501585431,64.2841,151.85,151.76,27.66479]
[1641501586032,3.13905606,151.84,151.76,27.66479]
[1641501586433,3.13905606,151.84,151.73,65.7179]
[1641501586634,3.13905606,151.84,151.76,0.86094394]
[1641501586835,3.13905606,151.84,151.74,10.1687501]
[1641501587035,64.2841,151.85,151.74,10.1687501]
[1641501587036,27.66479,151.79,151.74,10.1687501]
[1641501587236,34.30179,151.79,151.75,0.86094394]
[1641501587637,6.637,151.79,151.75,0.86094394]
[1641501587837,6.637,151.79,151.76,0.86094394]
[1641501588537,6.637,151.79,151.75,0.86094394]
[1641501589141,6.637,151.79,151.75,28.52573394]
[1641501589539,6.637,151.79,151.75,27.66479]
[1641501589739,6.637,151.79,151.73,65.7179]
[1641501589940,9.77605606,151.79,151.72,27.66479]
[1641501590141,6.637,151.79,151.72,27.66479]
[1641501590341,6.637,151.79,151.73,0.86094394]
[1641501590545,6.637,151.79,151.74,5.94278497]
[1641501591043,34.30179,151.79,151.74,5.94278497]
[1641501591442,34.30179,151.79,151.73,6.80372891]
[1641501591642,34.30179,151.79,151.73,5.94278497]
[1641501592044,6.637,151.79,151.73,5.94278497]
[1641501592244,64.2736,151.81,151.74,0.86094394]
[1641501592444,64.2736,151.81,151.75,0.86094394]
[1641501592644,64.2736,151.81,151.73,5.94278497]
[1641501593144,71.2546,151.81,151.73,6.80372891]
[1641501593545,71.2546,151.81,151.74,0.86094394]
[1641501594846,71.2546,151.81,151.69,19.82928751]
[1641501595046,27.66479,151.8,151.72,27.66479]
[1641501595447,27.66479,151.8,151.73,0.86094394]
[1641501595648,27.66479,151.8,151.73,6.80372891]
[1641501595850,27.66479,151.8,151.73,5.94278497]
[1641501596151,27.66479,151.8,151.74,0.86094394]
[1641501597050,27.66479,151.8,151.73,5.94278497]
[1641501597249,27.66479,151.8,151.73,6.80372891]
[1641501597450,27.66479,151.8,151.75,13.93572676]
[1641501598251,27.66479,151.8,151.75,14.7966707]
[1641501598451,27.66479,151.8,151.75,0.86094394]
[1641501599152,41.60051676,151.8,151.75,0.86094394]
[1641501600752,13.93572676,151.8,151.77,0.86094394]
[1641501600952,13.93572676,151.8,151.75,6.682]
[1641501601153,78.20932676,151.81,151.77,27.66479]
[1641501601552,78.20932676,151.81,151.78,0.86094394]
[1641501601752,78.20932676,151.81,151.77,27.66479]
[1641501601953,13.93572676,151.81,151.74,19.8785212]
[1641501602153,20.87272676,151.81,151.75,0.86094394]
[1641501602353,6.937,151.81,151.75,14.7966707]
[1641501602654,6.937,151.81,151.75,13.93572676]
[1641501602855,73.5681,151.81,151.75,13.93572676]
[1641501603255,27.66479,151.79,151.75,14.7966707]
[1641501604158,27.66479,151.79,151.75,13.93572676]
[1641501604358,27.66479,151.79,151.74,19.87848795]
[1641501604858,27.66479,151.79,151.75,0.86094394]
[1641501606462,27.66479,151.79,151.78,4.64519748]
[1641501607363,27.66479,151.79,151.74,19.87848795]
[1641501607564,27.66479,151.79,151.75,13.93572676]
[1641501608162,27.66479,151.79,151.75,14.7966707]
[1641501608964,27.66479,151.79,151.78,4.64524266]
[1641501609163,73.5681,151.81,151.78,4.64524266]
[1641501609364,6.937,151.81,151.78,4.64524266]
[1641501609565,17.07478282,151.82,151.78,4.64524266]
[1641501609765,17.07478282,151.82,151.79,0.86094394]
[1641501609766,13.93572676,151.82,151.79,0.86094394]
[1641501610164,13.93572676,151.82,151.78,4.64524266]
[1641501610565,13.93572676,151.82,151.79,4.64524266]
[1641501611166,3.13905606,151.8,151.75,13.93572676]
[1641501611373,3.13905606,151.78,151.72,5.94276119]
[1641501611571,3.13905606,151.77,151.74,5.94276119]
[1641501611768,55.32958,151.75,151.74,5.94276119]
[1641501612668,55.32958,151.75,151.67,55.7582218]
[1641501612868,55.32958,151.75,151.65,16.42407375]
[1641501613068,55.32958,151.75,151.65,15.56312981]
[1641501613069,63.9944,151.74,151.65,15.56312981]
[1641501613368,69.9874,151.74,151.7,0.86094394]
[1641501613570,69.9874,151.74,151.66,4.0]
[1641501613770,69.9874,151.74,151.67,27.66479]
[1641501614172,69.9874,151.74,151.7,0.86094394]
[1641501614571,5.993,151.74,151.67,31.66479]
[1641501614771,37.17652179,151.77,151.73,0.86094394]
[1641501614972,101.38452179,151.79,151.69,62.0368]
[1641501615171,101.38452179,151.79,151.73,0.86094394]
[1641501615571,101.38452179,151.79,151.75,0.86094394]
[1641501615777,12.68477834,151.78,151.76,0.86094394]
[1641501615975,12.68477834,151.78,151.75,4.438]
[1641501616376,12.68477834,151.78,151.77,0.86094394]
[1641501616776,3.57078372,151.8,151.77,0.86094394]
[1641501616977,3.57078372,151.8,151.79,0.86094394]
[1641501617174,3.57078372,151.8,151.78,0.86094394]
[1641501617474,3.57078372,151.8,151.76,1.0741315]
[1641501617875,3.57078372,151.8,151.78,0.86094394]
[1641501618074,3.57078372,151.8,151.79,1.0741315]
[1641501618875,3.57078372,151.8,151.79,3.15e-05]
[1641501619075,70.30478372,151.8,151.79,3.15e-05]
[1641501619474,83.43280537,151.8,151.74,3.15e-05]
[1641501619674,27.66479,151.77,151.74,3.15e-05]
[1641501620276,27.66479,151.77,151.7,0.86094394]
[1641501620476,30.80384606,151.77,151.7,6.28884318]
[1641501620677,30.80384606,151.77,151.7,5.42789924]
[1641501620877,37.38907539,151.77,151.7,6.28884318]
[1641501621277,37.38907539,151.77,151.7,0.86094394]
[1641501621479,67.7479,151.76,151.7,0.86094394]
[1641501621678,73.2969,151.76,151.7,0.86094394]
[1641501621880,73.2969,151.76,151.67,63.1951]
[1641501622077,13.15834149,151.75,151.7,0.86094394]
[1641501622479,13.15834149,151.75,151.67,63.1951]
[1641501622880,13.15834149,151.75,151.68,0.86094394]
[1641501623280,13.15834149,151.75,151.67,63.1951]
[1641501623480,13.15834149,151.75,151.66,27.66479]
[1641501623983,13.15834149,151.75,151.7,0.86094394]
[1641501626584,13.15834149,151.75,151.67,5.49003407]
[1641501626785,13.15834149,151.75,151.7,0.86094394]
[1641501627185,13.15834149,151.75,151.67,5.49003407]
[1641501628086,27.66479,151.74,151.7,0.86094394]
[1641501628286,13.15834149,151.75,151.67,5.49003407]
[1641501628488,13.15834149,151.75,151.67,15.04003407]
[1641501628687,13.15834149,151.75,151.72,0.86094394]
[1641501628892,27.66479,151.77,151.72,0.86094394]
[1641501629287,37.17652179,151.78,151.67,11.04003407]
[1641501629489,37.17652179,151.78,151.71,4.0]
[1641501629988,65.2336,151.79,151.71,4.0]
[1641501630187,65.2336,151.79,151.72,27.66479]
[1641501630387,68.37265606,151.79,151.72,27.66479]
[1641501631289,3.13905606,151.78,151.72,27.66479]
[1641501631489,3.13905606,151.77,151.72,27.66479]
[1641501632091,30.80384606,151.77,151.69,27.66479]
[1641501632290,3.13905606,151.75,151.69,28.52573394]
[1641501632489,3.13905606,151.74,151.69,28.52573394]
[1641501632692,3.13905606,151.72,151.69,27.66479]
[1641501632893,3.13905606,151.72,151.64,0.86094394]
[1641501633095,3.13905606,151.72,151.62,62.5564]
[1641501633696,3.13905606,151.72,151.62,66.5564]
[1641501634095,3.13905606,151.72,151.63,5.49013661]
[1641501634295,27.66479,151.71,151.63,5.49013661]
[1641501635395,27.66479,151.71,151.67,0.86094394]
[1641501635596,27.66479,151.71,151.63,5.49013661]
[1641501635896,30.80384606,151.71,151.63,5.49013661]
[1641501636296,27.66479,151.67,151.62,5.49013661]
[1641501636597,32.55879,151.67,151.62,5.49013661]
[1641501637000,39.14857583,151.67,151.62,5.49013661]
[1641501637398,39.14857583,151.67,151.61,0.86094394]
[1641501637600,106.92087583,151.67,151.61,0.86094394]
[1641501637799,106.92087583,151.67,151.59,5.49013661]
[1641501637999,79.25608583,151.67,151.59,9.49013661]
[1641501638200,79.25608583,151.67,151.59,5.49013661]
[1641501638400,72.6663,151.67,151.64,0.86094394]
[1641501638701,72.6663,151.67,151.63,0.86094394]
[1641501638902,75.80535606,151.67,151.62,0.86094394]
[1641501639102,72.6663,151.67,151.61,0.86094394]
[1641501639502,72.6663,151.67,151.62,0.86094394]
[1641501639702,72.6663,151.67,151.59,5.49013661]
[1641501639903,72.6663,151.67,151.62,0.86094394]
[1641501640104,75.80535606,151.67,151.62,0.86094394]
[1641501640306,72.6663,151.67,151.63,0.86094394]
[1641501641907,4.894,151.67,151.63,0.86094394]
[1641501642106,41.61108586,151.68,151.63,0.86094394]
[1641501642511,41.61108586,151.68,151.61,13.94629586]
[1641501642709,48.45408586,151.68,151.61,13.94629586]
[1641501642907,48.45408586,151.68,151.63,0.86094394]
[1641501643107,48.45408586,151.68,151.62,0.86094394]
[1641501643307,13.94629586,151.67,151.62,0.86094394]
[1641501643807,3.13905606,151.66,151.61,14.8072398]
[1641501644211,3.13905606,151.66,151.59,5.49013661]
[1641501644212,3.13905606,151.66,151.62,13.94629586]
[1641501645316,17.08535192,151.66,151.6,0.86094394]
[1641501645711,17.08535192,151.66,151.59,13.94629586]
[1641501646018,17.08535192,151.66,151.6,0.86094394]
[1641501646411,3.13905606,151.65,151.59,13.94629586]
[1641501646709,34.25566164,151.64,151.59,13.94629586]
[1641501646910,39.60066164,151.64,151.59,13.94629586]
[1641501647310,3.13905606,151.63,151.59,13.94629586]
[1641501648512,3.13905606,151.63,151.57,13.94629586]
[1641501648713,27.66479,151.61,151.57,14.8072398]
[1641501649413,27.66479,151.61,151.57,13.94629586]
[1641501649814,27.66479,151.61,151.56,5.49013661]
[1641501650013,27.66479,151.61,151.54,13.94629586]
[1641501650014,3.13905606,151.6,151.54,19.43643247]
[1641501650214,3.13905606,151.59,151.54,19.43643247]
[1641501650614,10.99260968,151.6,151.49,28.52573394]
[1641501650615,6.59434864,151.56,151.49,28.52573394]
[1641501650815,3.13905606,151.54,151.49,28.52573394]
[1641501651114,30.80384606,151.55,151.52,13.95265196]
[1641501651315,6.59565346,151.53,151.45,0.86094394]
[1641501651516,6.59565346,151.53,151.44,55.7582218]
[1641501651714,3.13905606,151.51,151.44,55.7582218]
[1641501651918,3.13905606,151.49,151.44,55.7582218]
[1641501652115,9.73710304,151.48,151.44,55.7582218]
[1641501652519,9.73710304,151.48,151.39,92.9646992]
[1641501652715,27.66479,151.43,151.39,93.82564314]
[1641501652918,33.04479,151.43,151.36,0.86094394]
[1641501653115,5.38,151.43,151.38,0.86094394]
[1641501653315,65.3276,151.49,151.4,0.86094394]
[1641501653515,65.3276,151.49,151.45,0.86094394]
[1641501653715,37.17652179,151.5,151.37,6.602]
[1641501653916,40.31557785,151.5,151.38,4.0]
[1641501654216,9.73536213,151.52,151.38,4.0]
[1641501654415,92.9646992,151.47,151.41,0.86094394]
[1641501654615,92.9646992,151.47,151.43,0.86094394]
[1641501654817,27.66479,151.44,151.36,64.43636818]
[1641501655016,27.66479,151.44,151.43,0.86094394]
[1641501655818,27.66479,151.44,151.37,4.0]
[1641501656320,27.66479,151.44,151.38,4.0]
[1641501657319,27.66479,151.44,151.37,4.0]
[1641501657721,27.66479,151.44,151.38,4.0]
[1641501658321,27.66479,151.44,151.36,4.0]
[1641501658621,34.73079,151.44,151.36,4.0]
[1641501658821,34.73079,151.44,151.37,4.0]
[1641501659622,4.66222755,151.43,151.38,4.0]
[1641501660322,4.66222755,151.43,151.39,0.23273325]
[1641501660625,4.66222755,151.43,151.39,4.23273325]
[1641501661224,2.755e-05,151.43,151.41,4.0]
[1641501661423,2.755e-05,151.43,151.42,4.0]
[1641501661622,37.23696149,151.48,151.42,9.52]
[1641501661822,37.23696149,151.48,151.45,4.0]
[1641501662023,37.23696149,151.5,151.45,4.0]
[1641501663227,64.90175149,151.51,151.43,31.66479]
[1641501663427,64.90175149,151.51,151.43,27.66479]
[1641501663627,64.90175149,151.51,151.44,4.0]
[1641501664030,27.66479,151.51,151.44,4.0]
[1641501665530,37.23696149,151.53,151.45,4.0]
[1641501666031,37.23696149,151.53,151.48,4.0]
[1641501666231,37.23696149,151.53,151.47,4.0]
[1641501666631,37.23696149,151.53,151.5,4.0]
[1641501666832,37.23696149,151.53,151.51,27.66479]
[1641501667432,37.23696149,151.53,151.44,67.5587]
[1641501667632,37.23696149,151.53,151.42,6.59304434]
[1641501667932,42.42896149,151.55,151.45,4.0]
[1641501668131,42.42896149,151.55,151.47,4.0]
[1641501668730,37.23696149,151.54,151.47,31.66479]
[1641501669432,37.23696149,151.54,151.47,27.66479]
[1641501669732,42.94196149,151.54,151.47,31.66479]
[1641501669933,5.705,151.54,151.47,31.66479]
[1641501670132,5.705,151.54,151.44,27.66479]
[1641501670333,5.705,151.54,151.44,31.66479]
[1641501670533,5.705,151.54,151.46,4.0]
[1641501670734,42.94196149,151.54,151.46,4.0]
[1641501670936,70.60675149,151.54,151.46,4.0]
[1641501671434,70.60675149,151.54,151.47,4.0]
[1641501671634,70.60675149,151.54,151.45,20.0]
[1641501671834,14.73409834,151.53,151.49,4.0]
[1641501672233,14.73409834,151.53,151.51,4.0]
[1641501672434,14.73409834,151.53,151.49,4.0]
[1641501672734,37.23696149,151.55,151.51,4.0]
[1641501672934,37.23696149,151.55,151.51,31.66479]
[1641501673335,37.23696149,151.55,151.51,27.66479]
[1641501673736,37.23696149,151.56,151.51,27.66479]
[1641501674135,37.23696149,151.56,151.51,31.66479]
[1641501674735,14.73409834,151.58,151.51,31.66479]
[1641501675339,14.73409834,151.58,151.51,27.66479]
[1641501675538,14.73409834,151.58,151.51,20.22185534]
[1641501676638,27.66479,151.59,151.51,20.22185534]
[1641501678538,51.79160577,151.58,151.51,24.87461755]
[1641501680945,51.79160577,151.58,151.51,28.87461755]
[1641501681745,13.95746072,151.54,151.51,24.22185534]
[1641501681945,13.95746072,151.54,151.51,20.22185534]
[1641501682547,13.95746072,151.53,151.5,4.65276221]
[1641501683248,13.95746072,151.53,151.49,4.65276221]
[1641501683451,13.95746072,151.52,151.5,4.0]
[1641501683648,13.95746072,151.52,151.49,8.65276221]
[1641501684450,13.95746072,151.52,151.5,4.0]
[1641501685150,13.95746072,151.52,151.51,27.66479]
[1641501685851,13.95746072,151.53,151.51,27.66479]
[1641501688052,13.95746072,151.53,151.51,31.66479]
[1641501688252,4.35068508,151.53,151.51,27.66479]
[1641501688652,4.35068508,151.53,151.52,4.0]
[1641501689155,51.79160577,151.56,151.52,4.0]
[1641501689356,14.55464428,151.56,151.52,8.65276221]
[1641501690055,14.55464428,151.58,151.52,8.65276221]
[1641501690856,14.55464428,151.58,151.52,4.65276221]
[1641501691056,37.23696149,151.59,151.56,4.0]
[1641501691256,55.84186799,151.63,151.58,4.0]
[1641501691455,55.84186799,151.63,151.59,4.0]
[1641501691656,121.16276799,151.67,151.59,4.0]
[1641501691856,121.16276799,151.67,151.6,4.0]
[1641501692055,121.16276799,151.67,151.6,5.263]
[1641501692255,121.16276799,151.67,151.6,9.263]
[1641501692456,55.84186799,151.67,151.6,5.263]
[1641501692657,55.84186799,151.67,151.62,4.65276221]
[1641501692856,27.66479,151.69,151.62,4.65276221]
[1641501693255,31.66479,151.69,151.62,4.65276221]
[1641501693456,6.58935161,151.68,151.62,4.65276221]
[1641501693857,6.58935161,151.68,151.61,4.65276221]
[1641501694458,45.78446979,151.69,151.61,4.65276221]
[1641501694756,45.78446979,151.69,151.62,4.0]
[1641501694956,18.11967979,151.68,151.62,4.0]
[1641501695157,18.11967979,151.68,151.63,27.66479]
[1641501695360,18.11967979,151.68,151.63,31.66479]
[1641501695959,63.1933,151.7,151.64,8.65276221]
[1641501696360,128.163231,151.76,151.64,8.65276221]
[1641501696560,62.3482,151.75,151.67,4.0]
[1641501696760,62.3482,151.75,151.67,10.05]
[1641501697160,80.45758564,151.75,151.67,37.71479]
[1641501697762,80.45758564,151.75,151.67,33.71479]
[1641501698163,73.4072,151.75,151.67,33.71479]
[1641501698364,73.4072,151.75,151.67,6.05]
[1641501698565,69.4072,151.75,151.63,27.66479]
[1641501698963,4.0,151.72,151.63,27.66479]
[1641501699164,27.66479,151.72,151.63,27.66479]
[1641501700165,27.66479,151.72,151.63,31.66479]
[1641501700372,27.66479,151.72,151.63,27.66479]
[1641501702873,27.66479,151.72,151.63,31.66479]
[1641501704376,3.71235241,151.71,151.65,4.65276221]
[1641501705078,3.71235241,151.71,151.66,4.0]
[1641501705277,3.71235241,151.71,151.67,27.66479]
[1641501706179,3.71235241,151.74,151.67,32.31755221]
[1641501707380,3.71235241,151.74,151.67,36.31755221]
[1641501708480,21.82049187,151.74,151.69,4.0]
[1641501709281,21.82049187,151.74,151.7,31.66479]
[1641501709481,3.71235241,151.74,151.7,32.58579]
[1641501711383,16.70619125,151.74,151.7,27.66479]
[1641501712387,16.70619125,151.74,151.68,4.65276221]
[1641501713188,37.18137384,151.73,151.67,27.66479]
[1641501715190,44.25237384,151.73,151.66,4.65276221]
[1641501715391,4.0,151.7,151.66,4.65276221]
[1641501715591,10.58848333,151.7,151.65,4.65276221]
[1641501715791,4.0,151.69,151.58,27.66479]
[1641501716091,6.59000297,151.66,151.58,27.66479]
[1641501716291,68.047,151.68,151.58,27.66479]
[1641501716690,37.18137384,151.66,151.59,0.89466642]
[1641501717292,37.18137384,151.66,151.6,4.0]
[1641501717493,37.18137384,151.66,151.6,9.741]
[1641501717899,16.70619125,151.67,151.61,4.0]
[1641501718092,16.70619125,151.67,151.6,9.741]
[1641501718293,16.70619125,151.67,151.62,24.0]
[1641501718495,16.70619125,151.67,151.62,20.0]
[1641501718694,3.71235241,151.67,151.62,20.0]
[1641501718894,17.65966135,151.67,151.62,20.0]
[1641501719394,17.65966135,151.67,151.64,27.66479]
[1641501720199,13.94730894,151.67,151.64,27.66479]
[1641501720396,13.94730894,151.67,151.66,4.0]
[1641501720597,13.94730894,151.67,151.66,4.628]
[1641501721498,13.94730894,151.67,151.65,4.0]
[1641501721696,13.94730894,151.67,151.64,27.66479]
[1641501721897,13.94730894,151.68,151.64,27.66479]
[1641501722898,13.94730894,151.67,151.6,13.94730894]
[1641501723600,13.94730894,151.67,151.6,14.84199047]
[1641501723801,13.94730894,151.65,151.6,0.89468153]
[1641501724600,13.94730894,151.64,151.6,0.89468153]
[1641501725200,13.94730894,151.64,151.6,4.89468153]
[1641501725400,13.94730894,151.64,151.62,31.66479]
[1641501725601,13.8611428,151.7,151.62,36.57979]
[1641501726001,13.8611428,151.7,151.62,56.57979]
[1641501726202,13.8611428,151.7,151.66,4.0]
[1641501726402,27.66479,151.73,151.66,4.448]
[1641501726602,67.3174,151.77,151.66,4.448]
[1641501727503,27.66479,151.76,151.66,97.70009]
[1641501727705,31.27056441,151.76,151.66,97.70009]
[1641501728403,31.27056441,151.76,151.66,32.11279]
[1641501728604,16.7117084,151.75,151.67,0.89503887]
[1641501728804,4.0,151.72,151.67,0.89503887]
[1641501729410,31.66479,151.72,151.62,27.66479]
[1641501729603,3.60577441,151.71,151.62,27.66479]
[1641501730206,67.57707441,151.71,151.62,27.66479]
[1641501730604,80.6830084,151.71,151.63,0.89477151]
[1641501731405,16.7117084,151.7,151.65,27.66479]
[1641501732306,3.60577441,151.7,151.66,0.89477151]
[1641501733409,67.5902,151.73,151.66,0.89477151]
[1641501734109,3.60577441,151.72,151.66,0.89477151]
[1641501735011,3.60577441,151.72,151.66,6.71453606]
[1641501735310,3.60577441,151.72,151.68,24.0]
[1641501735511,3.60577441,151.72,151.69,27.66479]
[1641501735712,3.60577441,151.72,151.7,4.0]
[1641501735910,3.60577441,151.72,151.69,32.55956151]
[1641501736310,3.60577441,151.72,151.7,4.0]
[1641501736710,3.60577441,151.75,151.7,5.02055767]
[1641501737609,3.60577441,151.75,151.69,31.66479]
[1641501737809,3.60577441,151.75,151.71,1.02058428]
[1641501738610,3.60577441,151.75,151.7,6.84020567]
[1641501739414,3.60577441,151.75,151.7,1.02058727]
[1641501741115,3.60577441,151.75,151.65,47.66479]
[1641501741316,62.8556,151.74,151.65,47.66479]
[1641501742116,3.60577441,151.73,151.66,6.84012334]
[1641501745821,27.66479,151.72,151.66,6.84012334]
[1641501746620,27.66479,151.72,151.66,1.02034628]
[1641501746821,16.38244089,151.71,151.64,1.02034628]
[1641501747622,16.38244089,151.71,151.63,27.66479]
[1641501747822,16.38244089,151.71,151.62,9.88]
[1641501747823,4.0,151.69,151.6,27.66479]
[1641501748023,11.071,151.69,151.6,27.66479]
[1641501748226,7.071,151.69,151.6,27.66479]
[1641501748723,3.60577441,151.68,151.61,1.01829496]
[1641501749831,4.0,151.65,151.61,1.01829496]
[1641501750031,9.961,151.65,151.57,27.66479]
[1641501750832,9.961,151.65,151.55,27.66479]
[1641501751034,62.4019,151.64,151.55,27.66479]
[1641501751833,27.66479,151.63,151.56,5.7855161]
[1641501752232,62.4019,151.64,151.57,24.0]
[1641501752432,62.4019,151.64,151.57,30.588]
[1641501752632,62.4019,151.64,151.57,6.588]
[1641501754035,62.4019,151.64,151.58,27.66479]
[1641501755136,62.4019,151.64,151.59,5.7855161]
[1641501756641,62.4019,151.64,151.6,13.95064711]
[1641501756838,13.95064711,151.67,151.6,13.95064711]
[1641501759642,105.70833711,151.68,151.61,13.95064711]
[1641501760743,13.95064711,151.67,151.61,5.028]
[1641501761542,105.70833711,151.68,151.61,18.97864711]
[1641501761943,105.70833711,151.68,151.61,46.64343711]
[1641501764449,13.95064711,151.67,151.61,32.69279]
[1641501765045,91.75769,151.68,151.61,46.64343711]
[1641501765046,105.70833711,151.68,151.61,46.64343711]
[1641501766047,78.04354711,151.68,151.61,46.64343711]
[1641501766950,13.95064711,151.69,151.62,19.74613515]
[1641501767350,13.95064711,151.69,151.63,4.0]
[1641501767550,13.95064711,151.69,151.64,4.0]
[1641501767750,13.95064711,151.69,151.63,4.0]
[1641501767950,63.1034,151.75,151.62,39.74613515]
[1641501767951,13.95064711,151.71,151.68,27.66479]
[1641501769052,13.95064711,151.71,151.68,20.22730915]
[1641501769754,13.95064711,151.72,151.68,20.22730915]
[1641501770654,13.95064711,151.73,151.66,41.61543711]
[1641501770857,6.117,151.72,151.66,41.61543711]
[1641501771058,10.117,151.72,151.66,41.61543711]
[1641501771254,4.0,151.71,151.66,13.95064711]
[1641501771454,17.95064711,151.71,151.64,13.95064711]
[1641501771954,13.95064711,151.71,151.64,13.95064711]
[1641501772155,41.61543711,151.71,151.64,13.95064711]
[1641501772354,13.95064711,151.69,151.62,13.95064711]
[1641501773356,79.58594711,151.7,151.63,13.95064711]
[1641501774157,79.58594711,151.7,151.62,19.92447469]
[1641501775560,83.58594711,151.7,151.62,19.92447469]
[1641501775960,83.58594711,151.7,151.65,4.64656757]
[1641501776161,4.64656757,151.66,151.65,4.64656757]
[1641501777661,4.64656757,151.66,151.62,19.92447469]
[1641501779362,4.64656757,151.65,151.62,19.92447469]
[1641501780260,4.64656757,151.65,151.62,13.95064711]
[1641501780463,4.64656757,151.64,151.61,69.28022711]
[1641501781062,4.64656757,151.65,151.61,69.28022711]
[1641501781864,4.64656757,151.66,151.61,69.28022711]
[1641501782064,4.64656757,151.66,151.63,13.95064711]
[1641501782566,4.64656757,151.66,151.65,27.66479]
[1641501785569,4.64656757,151.66,151.63,13.95064711]
[1641501786570,4.64656757,151.66,151.64,27.66479]
[1641501786971,4.64656757,151.67,151.64,27.66479]
[1641501790178,4.64656757,151.67,151.65,1.07790679]
[1641501793785,4.64656757,151.67,151.65,25.07790679]
[1641501793985,3.57114793,151.69,151.65,25.07790679]
[1641501794385,3.57114793,151.69,151.65,1.07790679]
[1641501794585,13.95064711,151.7,151.65,1.07790679]
[1641501794786,51.13202095,151.74,151.66,15.0285539]
[1641501794986,13.95064711,151.74,151.66,15.0285539]
[1641501796389,13.95064711,151.72,151.65,21.0002104]
[1641501797492,7.074,151.72,151.65,21.0002104]
[1641501798393,3.56948614,151.71,151.65,21.0002104]
[1641501800095,13.95064711,151.73,151.66,13.95064711]
[1641501801097,4.0,151.72,151.66,13.95064711]
[1641501801300,11.022,151.72,151.66,13.95064711]
[1641501801498,7.022,151.72,151.66,13.95064711]
[1641501801799,7.022,151.72,151.66,15.0285539]
[1641501801800,3.56948614,151.71,151.66,15.0285539]
[1641501802598,13.95064711,151.73,151.66,15.0285539]
[1641501802997,13.95064711,151.73,151.67,27.66479]
[1641501803397,13.95064711,151.73,151.7,4.0]
[1641501803597,13.95064711,151.73,151.7,10.099]
[1641501803999,13.95064711,151.73,151.7,6.099]
[1641501804598,12.61669854,151.74,151.71,1.07790679]
[1641501804799,13.95064711,151.77,151.71,1.07790679]
[1641501804998,13.95064711,151.77,151.73,27.66479]
[1641501806901,3.56948614,151.77,151.74,1.07790679]
[1641501807101,3.56948614,151.77,151.74,7.09790679]
[1641501807701,3.56948614,151.78,151.75,1.07790679]
[1641501809707,17.52013325,151.78,151.74,1.07790679]
[1641501810106,17.52013325,151.78,151.74,28.74269679]
[1641501810906,17.52013325,151.78,151.75,1.07790679]
[1641501812006,17.52013325,151.78,151.72,13.95064711]
[1641501812207,27.66479,151.77,151.72,13.95064711]
[1641501813208,13.95064711,151.76,151.7,9.76]
[1641501814008,13.95064711,151.76,151.7,37.42479]
[1641501816311,13.95064711,151.77,151.71,24.0]